fUSD/lending_fUSD_20250811
["ID","MTS","AMOUNT","RATE_DAILY","PERIOD"]
[378660336,1754946653220,-400.0,0.00016712,2]
[378660337,1754946653230,-588.77,0.00016712,2]
[378660338,1754946653240,-496.19,0.00016712,2]
[378660339,1754946653249,-400.0,0.00016712,2]
[378660340,1754946653259,-626.47,0.00016712,2]
[378660342,1754946653268,-752.6,0.00016712,2]
[378660344,1754946653278,-1351.07425306,0.00016712,2]
[378660346,1754946653291,-539.53574694,0.00016712,2]
[378660348,1754946653300,-187.11792798,0.00016712,2]
[378660350,1754946653311,-1993.57207202,0.00016712,2]
[378660352,1754946653321,-400.0,0.00016712,2]
[378660354,1754946653330,-402.12,0.00016712,2]
[378660356,1754946653339,-400.0,0.00016712,2]
[378660358,1754946653348,-1026.46,0.00016712,2]
[378660360,1754946653358,-400.0,0.00016712,2]
[378660362,1754946653367,-400.0,0.00016712,2]
[378660364,1754946653376,-400.0,0.00016712,2]
[378660366,1754946653386,-400.0,0.00016712,2]
[378660368,1754946653395,-692.04,0.00016712,2]
[378660370,1754946653404,-467.32,0.00016712,2]
[378660372,1754946653414,-638.31,0.00016712,2]
[378660373,1754946653423,-400.0,0.00016712,2]
[378660374,1754946653432,-400.0,0.00016712,2]
[378660375,1754946653442,-400.0,0.00016712,2]
[378660376,1754946653451,-400.0,0.00016712,2]
[378660377,1754946653460,-524.32,0.00016712,2]
[378660378,1754946653470,-581.57,0.00016712,2]
[378660379,1754946653479,-743.22,0.00016712,2]
[378660380,1754946653489,-854.69,0.00016712,2]
[378660381,1754946653498,-400.0,0.00016712,2]
[378660382,1754946653507,-1870.38,0.00016712,2]
[378660383,1754946653516,-443.65,0.00016712,2]
[378660384,1754946653526,-623.06,0.00016712,2]
[378660386,1754946653535,-558.22,0.00016712,2]
[378660387,1754946653544,-1046.74,0.00016712,2]
[378660388,1754946653554,-1489.2,0.00016712,2]
[378660389,1754946653563,-400.0,0.00016712,2]
[378660390,1754946653573,-2303.06,0.00016712,2]
[378660391,1754946653583,-400.0,0.00016712,2]
[378660392,1754946653592,-400.0,0.00016712,2]
[378660393,1754946653603,-400.0,0.00016712,2]
[378660394,1754946653613,-400.0,0.00016712,2]
[378660395,1754946653622,-1047.23,0.00016712,2]
[378660396,1754946653631,-400.0,0.00016712,2]
[378660397,1754946653641,-400.0,0.00016712,2]
[378660398,1754946653651,-1190.05,0.00016712,2]
[378660399,1754946653661,-1328.2,0.00016712,2]
[378660400,1754946653671,-475.25,0.00016712,2]
[378660401,1754946653681,-762.81,0.00016712,2]
[378660402,1754946653690,-400.0,0.00016712,2]
[378660403,1754946653700,-400.0,0.00016712,2]
[378660404,1754946653709,-525.85,0.00016712,2]
[378660405,1754946653718,-1072.08,0.00016712,2]
[378660406,1754946653728,-984.21,0.00016712,2]
[378660407,1754946653737,-706.71,0.00016712,2]
[378660408,1754946653747,-476.68,0.00016712,2]
[378660409,1754946653761,-151.0,0.00016712,2]
[378660410,1754946653770,-151.0,0.00016712,2]
[378660411,1754946653780,-400.0,0.00016712,2]
[378660412,1754946653789,-400.0,0.00016712,2]
[378660413,1754946653799,-8569.09,0.00016712,2]
[378660414,1754946653808,-470.69,0.00016712,2]
[378660416,1754946653817,-166.201716,0.00016712,2]
[378660418,1754946653826,-1696.11,0.00016712,2]
[378660420,1754946653836,-400.0,0.00016712,2]
[378660422,1754946653846,-400.0,0.00016712,2]
[378660424,1754946653855,-1064.855656,0.00016712,2]
[378660426,1754946653865,-400.0,0.00016712,2]
[378660428,1754946653875,-400.0,0.00016712,2]
[378660431,1754946653886,-400.0,0.00016712,2]
[378660433,1754946653895,-670.47,0.00016712,2]
[378660435,1754946653904,-3615.973423,0.00016712,2]
[378660437,1754946653913,-400.0,0.00016712,2]
[378660439,1754946653923,-2233.91,0.00016712,2]
[378660441,1754946653932,-659.93,0.00016712,2]
[378660443,1754946653941,-503.15,0.00016712,2]
[378660445,1754946653951,-274.879212,0.00016712,2]
[378660447,1754946653960,-3615.973423,0.00016712,2]
[378660449,1754946653969,-400.0,0.00016712,2]
[378660451,1754946653979,-151.0,0.00016712,2]
[378660453,1754946653988,-400.0,0.00016712,2]
[378660455,1754946653998,-494.61,0.00016712,2]
[378660457,1754946654007,-400.0,0.00016712,2]
[378660459,1754946654016,-400.0,0.00016712,2]
[378660461,1754946654026,-835.13,0.00016712,2]
[378660463,1754946654036,-1249.05,0.00016712,2]
[378660465,1754946654045,-249.853004,0.00016712,2]
[378660467,1754946654055,-400.0,0.00016712,2]
[378660469,1754946654064,-276.937031,0.00016712,2]
[378660471,1754946654074,-151.0,0.00016712,2]
[378660473,1754946654084,-400.0,0.00016712,2]
[378660475,1754946654093,-400.0,0.00016712,2]
[378660477,1754946654104,-400.0,0.00016712,2]
[378660479,1754946654114,-938.45,0.00016712,2]
[378660481,1754946654123,-880.94,0.00016712,2]
[378660483,1754946654132,-443.54,0.00016712,2]
[378660485,1754946654142,-409.19333041,0.00016712,2]
[378660487,1754946654151,-151.0,0.00016712,2]
[378660489,1754946654160,-611.908867,0.00016712,2]
[378660491,1754946654170,-3190.37,0.00016712,2]
[378660493,1754946654180,-535.23,0.00016712,2]
[378660495,1754946654188,-1026.47216,0.00016712,2]
[378660497,1754946654197,-416.28,0.00016712,2]
[378660499,1754946654206,-400.0,0.00016712,2]
[378660501,1754946654215,-1323.98,0.00016712,2]
[378660503,1754946654224,-400.0,0.00016712,2]
[378660505,1754946654233,-400.0,0.00016712,2]
[378660507,1754946654243,-9258.84,0.00016712,2]
[378660509,1754946654252,-1353.88,0.00016712,2]
[378660511,1754946654262,-400.0,0.00016712,2]
[378660512,1754946654271,-400.0,0.00016712,2]
[378660513,1754946654280,-151.0,0.00016712,2]
[378660514,1754946654290,-799.65,0.00016712,2]
[378660515,1754946654299,-400.0,0.00016712,2]
[378660517,1754946654308,-400.0,0.00016712,2]
[378660549,1754946654318,-532.42,0.00016712,2]
[378660553,1754946654619,-400.0,0.00016712,2]
[378660555,1754946654629,-400.0,0.00016712,2]
[378660557,1754946654639,-1174.79,0.00016712,2]
[378660559,1754946654648,-166.797875,0.00016712,2]
[378660561,1754946654657,-2034.78,0.00016712,2]
[378660563,1754946654666,-598.3,0.00016712,2]
[378660564,1754946654676,-707.92,0.00016712,2]
[378660566,1754946654685,-151.0,0.00016712,2]
[378660568,1754946654694,-400.0,0.00016712,2]
[378660570,1754946654704,-542.138298,0.00016712,2]
[378660573,1754946654713,-400.0,0.00016712,2]
[378660575,1754946654723,-400.0,0.00016712,2]
[378660577,1754946654732,-993.45,0.00016712,2]
[378660579,1754946654741,-451.09,0.00016712,2]
[378660581,1754946654750,-635.83,0.00016712,2]
[378660583,1754946654763,-677.76,0.00016712,2]
[378660585,1754946654772,-542.138298,0.00016712,2]
[378660587,1754946654782,-1396.63,0.00016712,2]
[378660589,1754946654792,-400.0,0.00016712,2]
[378660591,1754946654802,-728.61,0.00016712,2]
[378660593,1754946654811,-1808.98,0.00016712,2]
[378660595,1754946654821,-400.0,0.00016712,2]
[378660597,1754946654831,-400.0,0.00016712,2]
[378660599,1754946654841,-1654.77,0.00016712,2]
[378660601,1754946654850,-400.0,0.00016712,2]
[378660603,1754946654859,-1548.73,0.00016712,2]
[378660605,1754946654869,-400.0,0.00016712,2]
[378660607,1754946654878,-1966.62,0.00016712,2]
[378660609,1754946654888,-458.09,0.00016712,2]
[378660611,1754946654897,-2583.3,0.00016712,2]
[378660613,1754946654907,-659.71,0.00016712,2]
[378660615,1754946654916,-400.0,0.00016712,2]
[378660617,1754946654926,-400.0,0.00016712,2]
[378660619,1754946654935,-961.12,0.00016712,2]
[378660621,1754946654944,-410.32,0.00016712,2]
[378660623,1754946654954,-400.0,0.00016712,2]
[378660626,1754946654964,-524.15,0.00016712,2]
[378660628,1754946654973,-400.0,0.00016712,2]
[378660630,1754946654982,-414.85,0.00016712,2]
[378660632,1754946654992,-400.0,0.00016712,2]
[378660634,1754946655001,-400.0,0.00016712,2]
[378660636,1754946655011,-921.85,0.00016712,2]
[378660638,1754946655020,-400.0,0.00016712,2]
[378660640,1754946655029,-732.06,0.00016712,2]
[378660642,1754946655039,-5451.73,0.00016712,2]
[378660644,1754946655048,-421.35,0.00016712,2]
[378660646,1754946655057,-400.0,0.00016712,2]
[378660648,1754946655067,-891.07,0.00016712,2]
[378660649,1754946655076,-530.21,0.00016712,2]
[378660652,1754946655085,-755.17,0.00016712,2]
[378660654,1754946655095,-400.0,0.00016712,2]
[378660656,1754946655105,-400.0,0.00016712,2]
[378660658,1754946655114,-1112.65,0.00016712,2]
[378660660,1754946655123,-852.11,0.00016712,2]
[378660662,1754946655133,-400.0,0.00016712,2]
[378660664,1754946655142,-734.76,0.00016712,2]
[378660666,1754946655152,-1030.97,0.00016712,2]
[378660668,1754946655161,-211.6273,0.00016712,2]
[378660670,1754946655170,-1420.47,0.00016712,2]
[378660672,1754946655180,-1233.44,0.00016712,2]
[378660674,1754946655189,-968.0,0.00016712,2]
[378660676,1754946655199,-461.47,0.00016712,2]
[378660677,1754946655208,-1913.23,0.00016712,2]
[378660678,1754946655218,-400.0,0.00016712,2]
[378660679,1754946655227,-2624.25,0.00016712,2]
[378660680,1754946655237,-400.0,0.00016712,2]
[378660681,1754946655246,-400.0,0.00016712,2]
[378660682,1754946655255,-3023.81,0.00016712,2]
[378660683,1754946655265,-1008.79,0.00016712,2]
[378660684,1754946655274,-400.0,0.00016712,2]
[378660685,1754946655284,-666.04,0.00016712,2]
[378660686,1754946655294,-1118.27,0.00016712,2]
[378660687,1754946655303,-549.52,0.00016712,2]
[378660688,1754946655312,-400.0,0.00016712,2]
[378660689,1754946655321,-400.0,0.00016712,2]
[378660690,1754946655331,-1000.0,0.00016712,2]
[378660691,1754946655341,-400.0,0.00016712,2]
[378660692,1754946655350,-2403.47,0.00016712,2]
[378660693,1754946655360,-400.0,0.00016712,2]
[378660694,1754946655369,-874.28,0.00016712,2]
[378660695,1754946655379,-400.0,0.00016712,2]
[378660696,1754946655388,-780.23,0.00016712,2]
[378660697,1754946655398,-611.91,0.00016712,2]
[378660698,1754946655408,-683.76,0.00016712,2]
[378660699,1754946655417,-400.0,0.00016712,2]
[378660700,1754946655427,-400.0,0.00016712,2]
[378660701,1754946655436,-428.59,0.00016712,2]
[378660702,1754946655446,-400.0,0.00016712,2]
[378660703,1754946655456,-400.0,0.00016712,2]
[378660704,1754946655465,-740.27,0.00016712,2]
[378660705,1754946655475,-1501.29,0.00016712,2]
[378660706,1754946655484,-473.47,0.00016712,2]
[378660707,1754946655494,-400.0,0.00016712,2]
[378660708,1754946655504,-400.0,0.00016712,2]
[378660709,1754946655513,-400.0,0.00016712,2]
[378660710,1754946655523,-400.0,0.00016712,2]
[378660711,1754946655533,-400.0,0.00016712,2]
[378660712,1754946655543,-400.0,0.00016712,2]
[378660713,1754946655553,-725.09,0.00016712,2]
[378660714,1754946655563,-261.38,0.00016738,2]
[378660715,1754946655572,-500.0,0.0001674,2]
[378660716,1754946655582,-794.89793494,0.00016748,2]
[378660717,1754946655591,-200.0,0.00016768,2]
[378660718,1754946655600,-500.0,0.00016773,2]
[378660719,1754946655610,-151.0,0.00016773,2]
[378660720,1754946655620,-410.52644706,0.00016774,2]
[378660721,1754946655629,-797.4,0.00016785,2]
[378660722,1754946655639,-797.4,0.00016785,2]
[378660723,1754946655649,-478.22,0.00016785,2]
[378660724,1754946655658,-797.4,0.00016785,2]
[378660725,1754946655668,-797.4,0.00016785,2]
[378660726,1754946655678,-684.0,0.0001679,2]
[378660727,1754946655687,-684.0,0.0001679,2]
[378660728,1754946655697,-684.0,0.0001679,2]
[378660729,1754946655707,-684.0,0.0001679,2]
[378660730,1754946655716,-684.0,0.0001679,2]
[378660731,1754946655727,-684.0,0.0001679,2]
[378660732,1754946655736,-684.0,0.0001679,2]
[378660733,1754946655746,-684.0,0.0001679,2]
[378660734,1754946655760,-684.0,0.0001679,2]
[378660735,1754946655769,-684.0,0.0001679,2]
[378660736,1754946655779,-684.0,0.0001679,2]
[378660737,1754946655789,-684.0,0.0001679,2]
[378660738,1754946655799,-684.0,0.0001679,2]
[378660739,1754946655810,-684.0,0.0001679,2]
[378660740,1754946655819,-150.0,0.00016791,2]
[378660741,1754946655829,-150.0,0.00016791,2]
[378660742,1754946655839,-150.0,0.00016791,2]
[378660743,1754946655848,-150.0,0.00016791,2]
[378660744,1754946655859,-150.0,0.00016791,2]
[378660745,1754946655868,-150.0,0.00016791,2]
[378660746,1754946655878,-3437.787,0.00016791,2]
[378660747,1754946655887,-1253.0,0.00016791,2]
[378660748,1754946655897,-810.0,0.00016791,2]
[378660749,1754946655906,-957.0,0.00016791,2]
[378660750,1754946655915,-565.0,0.00016791,2]
[378660751,1754946655924,-2027.0,0.00016791,2]
[378660752,1754946655934,-598.0,0.00016791,2]
[378660753,1754946655943,-1295.0,0.00016791,2]
[378660754,1754946655953,-1654.0,0.00016791,2]
[378660755,1754946655964,-1431.0,0.00016792,2]
[378660756,1754946655973,-1431.0,0.00016792,2]
[378660757,1754946655983,-1431.0,0.00016792,2]
[378660758,1754946655992,-1431.0,0.00016792,2]
[378660759,1754946656001,-1431.0,0.00016792,2]
[378660760,1754946656011,-1431.0,0.00016792,2]
[378660761,1754946656021,-1431.0,0.00016792,2]
[378660762,1754946656030,-1431.0,0.00016792,2]
[378660763,1754946656040,-1431.0,0.00016792,2]
[378660764,1754946656049,-1431.0,0.00016792,2]
[378660765,1754946656059,-1431.0,0.00016792,2]
[378660766,1754946656068,-1431.0,0.00016792,2]
[378660767,1754946656077,-1431.0,0.00016792,2]
[378660768,1754946656088,-151.0,0.00016796,2]
[378660769,1754946656097,-3615.973423,0.00016796,2]
[378660770,1754946656106,-3615.973423,0.00016796,2]
[378660771,1754946656116,-151.0,0.00016796,2]
[378660772,1754946656125,-151.0,0.00016796,2]
[378660773,1754946656135,-684.0,0.00016797,2]
[378660774,1754946656144,-684.0,0.00016797,2]
[378660775,1754946656153,-684.0,0.00016797,2]
[378660776,1754946656162,-684.0,0.00016797,2]
[378660777,1754946656171,-684.0,0.00016797,2]
[378660778,1754946656181,-684.0,0.00016797,2]
[378660779,1754946656190,-684.0,0.00016797,2]
[378660780,1754946656199,-684.0,0.00016797,2]
[378660781,1754946656208,-684.0,0.00016797,2]
[378660782,1754946656218,-684.0,0.00016797,2]
[378660783,1754946656227,-684.0,0.00016797,2]
[378660784,1754946656237,-684.0,0.00016797,2]
[378660785,1754946656246,-684.0,0.00016797,2]
[378660786,1754946656256,-151.0,0.00016798,2]
[378660787,1754946656265,-151.0,0.00016798,2]
[378660788,1754946656275,-542.138298,0.00016798,2]
[378660789,1754946656284,-542.138298,0.00016798,2]
[378660790,1754946656294,-1000.0,0.00016799,2]
[378660791,1754946656304,-1000.0,0.00016799,2]
[378660792,1754946656313,-1000.0,0.00016799,2]
[378660793,1754946656322,-1000.0,0.00016799,2]
[378660794,1754946656331,-1000.0,0.00016799,2]
[378660795,1754946656340,-1000.0,0.00016799,2]
[378660796,1754946656349,-1000.0,0.00016799,2]
[378660797,1754946656359,-1000.0,0.00016799,2]
[378660798,1754946656368,-718.76,0.000168,2]
[378660799,1754946656377,-214.64,0.000168,2]
[378660800,1754946656386,-467.96,0.000168,2]
[378660801,1754946656396,-165.73,0.000168,2]
[378660802,1754946656405,-165.73,0.000168,2]
[378660803,1754946656415,-467.96,0.000168,2]
[378660804,1754946656424,-165.73,0.000168,2]
[378660805,1754946656434,-467.18,0.000168,2]
[378660806,1754946656443,-164.74,0.000168,2]
[378660807,1754946656452,-151.0,0.00016804,2]
[378660808,1754946656461,-151.0,0.00016804,2]
[378660809,1754946656471,-151.0,0.00016804,2]
[378660810,1754946656480,-151.0,0.00016811,2]
[378660811,1754946656490,-151.0,0.00016811,2]
[378660812,1754946656500,-151.0,0.00016811,2]
[378660813,1754946656509,-156.665208,0.00016811,2]
[378660814,1754946656519,-151.0,0.00016811,2]
[378660815,1754946656528,-151.0,0.00016811,2]
[378660816,1754946656538,-151.0,0.00016855,2]
[378660817,1754946656547,-151.0,0.00016855,2]
[378660818,1754946656557,-151.0,0.00016855,2]
[378660819,1754946656566,-180.340457,0.00016855,2]
[378660820,1754946656576,-180.340457,0.00016855,2]
[378660821,1754946656585,-6963.36599024,0.00016859,2]
[378660822,1754946656595,-151.0,0.0001686,2]
[378660823,1754946656605,-151.0,0.0001686,2]
[378660824,1754946656615,-151.0,0.00016861,2]
[378660825,1754946656625,-151.0,0.00016861,2]
[378660826,1754946656635,-685.689173,0.00016861,2]
[378660827,1754946656644,-685.689173,0.00016861,2]
[378660828,1754946656654,-151.0,0.00016873,2]
[378660829,1754946656664,-151.0,0.00016874,2]
[378660830,1754946656674,-219.804985,0.00016874,2]
[378660831,1754946656684,-175.82769713,0.00016886,2]
[378660832,1754946656693,-541.33155,0.000169,2]
[378660833,1754946656704,-247.0,0.0001691,2]
[378660834,1754946656713,-200.0,0.00016936,2]
[378660835,1754946656723,-176.62141686,0.00016976,2]
[378660836,1754946656732,-666.0,0.00016985,2]
[378660837,1754946656741,-300.0,0.00016985,2]
[378660838,1754946656752,-300.0,0.00016985,2]
[378660839,1754946656765,-300.0,0.00016985,2]
[378660840,1754946656774,-150.0,0.00016986,2]
[378660841,1754946656783,-150.0,0.00016986,2]
[378660842,1754946656793,-500.0,0.00016986,2]
[378660843,1754946656803,-150.0,0.00016986,2]
[378660844,1754946656812,-500.0,0.00016986,2]
[378660845,1754946656822,-150.0,0.00016986,2]
[378660846,1754946656834,-150.0,0.00016986,2]
[378660847,1754946656845,-150.0,0.00016986,2]
[378660848,1754946656858,-277.27269552,0.00016986,2]
[378660849,1754946656868,-500.0,0.00016986,2]
[378660850,1754946656877,-151.0,0.00016986,2]
[378660851,1754946656887,-151.0,0.00016986,2]
[378660852,1754946656896,-151.497008,0.00016986,2]
[378660853,1754946656905,-151.0,0.00016986,2]
[378660854,1754946656915,-151.0,0.00016986,2]
[378660855,1754946656924,-151.0,0.00016986,2]
[378660856,1754946656935,-151.0,0.00016986,2]
[378660857,1754946656944,-151.0,0.00016986,2]
[378660858,1754946656953,-400.0,0.00016986,2]
[378660859,1754946656962,-400.0,0.00016986,2]
[378660860,1754946656972,-400.0,0.00016986,2]
[378660861,1754946656981,-400.0,0.00016986,2]
[378660862,1754946656990,-400.0,0.00016986,2]
[378660863,1754946656999,-400.0,0.00016986,2]
[378660864,1754946657009,-400.0,0.00016986,2]
[378660865,1754946657089,-151.0,0.00016986,2]
[378660866,1754946657099,-297.131924,0.00016986,2]
[378660867,1754946657108,-400.0,0.00016986,2]
[378660868,1754946657117,-400.0,0.00016986,2]
[378660869,1754946657127,-400.0,0.00016986,2]
[378660870,1754946657136,-151.809313,0.00016986,2]
[378660871,1754946657145,-400.0,0.00016986,2]
[378660872,1754946657154,-400.0,0.00016986,2]
[378660873,1754946657163,-400.0,0.00016986,2]
[378660874,1754946657172,-400.0,0.00016986,2]
[378660875,1754946657182,-400.0,0.00016986,2]
[378660876,1754946657191,-400.0,0.00016986,2]
[378660877,1754946657200,-436.59,0.00016986,2]
[378660878,1754946657209,-407.3,0.00016986,2]
[378660879,1754946657218,-400.0,0.00016986,2]
[378660880,1754946657227,-400.0,0.00016986,2]
[378660881,1754946657236,-1056.08,0.00016986,2]
[378660882,1754946657246,-1056.08,0.00016986,2]
[378660883,1754946657255,-458.61911345,0.00016986,2]
[378660884,1754946657264,-474.73500669,0.00016986,2]
[378660885,1754946657274,-400.0,0.00016986,2]
[378660886,1754946657283,-400.0,0.00016986,2]
[378660887,1754946657292,-400.0,0.00016986,2]
[378660888,1754946657301,-400.0,0.00016986,2]
[378660889,1754946657310,-300.0,0.00016986,2]
[378660890,1754946657319,-400.0,0.00016986,2]
[378660891,1754946657328,-215.700416,0.00016986,2]
[378660892,1754946657337,-295.365116,0.00016986,2]
[378660893,1754946657346,-1987.44,0.00016986,2]
[378660894,1754946657356,-400.0,0.00016986,2]
[378660895,1754946657366,-400.0,0.00016986,2]
[378660896,1754946657375,-400.0,0.00016986,2]
[378660897,1754946657384,-400.0,0.00016986,2]
[378660898,1754946657393,-400.0,0.00016986,2]
[378660899,1754946657403,-236.52657044,0.00016986,2]
[378660900,1754946657412,-681.98,0.00016986,2]
[378660901,1754946657421,-400.0,0.00016986,2]
[378660902,1754946657431,-400.0,0.00016986,2]
[378660903,1754946657440,-1579.38,0.00016986,2]
[378660904,1754946657449,-400.0,0.00016986,2]
[378660905,1754946657459,-400.0,0.00016986,2]
[378660906,1754946657468,-400.0,0.00016986,2]
[378660907,1754946657477,-400.0,0.00016986,2]
[378660908,1754946657486,-400.0,0.00016986,2]
[378660909,1754946657495,-1021.01,0.00016986,2]
[378660910,1754946657504,-400.0,0.00016986,2]
[378660911,1754946657513,-400.0,0.00016986,2]
[378660912,1754946657522,-400.0,0.00016986,2]
[378660913,1754946657531,-161.297109,0.00016986,2]
[378660914,1754946657540,-161.297109,0.00016986,2]
[378660915,1754946657549,-400.0,0.00016986,2]
[378660916,1754946657559,-400.0,0.00016986,2]
[378660917,1754946657568,-400.0,0.00016986,2]
[378660918,1754946657577,-400.0,0.00016986,2]
[378660919,1754946657586,-400.0,0.00016986,2]
[378660920,1754946657595,-400.0,0.00016986,2]
[378660921,1754946657605,-400.0,0.00016986,2]
[378660922,1754946657615,-577.68,0.00016986,2]
[378660923,1754946657627,-400.0,0.00016986,2]
[378660924,1754946657640,-833.48,0.00016986,2]
[378660925,1754946657657,-400.0,0.00016986,2]
[378660926,1754946657671,-400.0,0.00016986,2]
[378660927,1754946657680,-400.0,0.00016986,2]
[378660928,1754946657690,-400.0,0.00016986,2]
[378660929,1754946657699,-400.0,0.00016986,2]
[378660930,1754946657707,-400.0,0.00016986,2]
[378660931,1754946657716,-712.97,0.00016986,2]
[378660932,1754946657726,-400.0,0.00016986,2]
[378660933,1754946657734,-400.0,0.00016986,2]
[378660934,1754946657743,-400.0,0.00016986,2]
[378660935,1754946657753,-857.46,0.00016986,2]
[378660936,1754946657765,-400.0,0.00016986,2]
[378660937,1754946657774,-614.38,0.00016986,2]
[378660938,1754946657783,-400.0,0.00016986,2]
[378660939,1754946657792,-400.0,0.00016986,2]
[378660940,1754946657803,-441.76,0.00016986,2]
[378660941,1754946657812,-400.0,0.00016986,2]
[378660942,1754946657821,-293.83364608,0.00016986,2]
[378660943,1754946657831,-400.0,0.00016986,2]
[378660944,1754946657841,-400.0,0.00016986,2]
[378660945,1754946657850,-400.0,0.00016986,2]
[378660946,1754946657860,-576.35,0.00016986,2]
[378660947,1754946657869,-400.0,0.00016986,2]
[378660948,1754946657878,-400.0,0.00016986,2]
[378660949,1754946657888,-400.0,0.00016986,2]
[378660950,1754946657897,-400.0,0.00016986,2]
[378660951,1754946657906,-400.0,0.00016986,2]
[378660952,1754946657916,-400.0,0.00016986,2]
[378660953,1754946657926,-400.0,0.00016986,2]
[378660954,1754946657935,-487.78,0.00016986,2]
[378660955,1754946657944,-400.0,0.00016986,2]
[378660956,1754946657953,-667.78,0.00016986,2]
[378660957,1754946657963,-420.16,0.00016986,2]
[378660958,1754946657972,-400.0,0.00016986,2]
[378660959,1754946657986,-400.0,0.00016986,2]
[378660960,1754946658004,-400.0,0.00016986,2]
[378660961,1754946658014,-400.0,0.00016986,2]
[378660962,1754946658025,-429.74864012,0.00016986,2]
[378660963,1754946658034,-400.0,0.00016986,2]
[378660964,1754946658044,-400.0,0.00016986,2]
[378660965,1754946658055,-400.0,0.00016986,2]
[378660966,1754946658065,-822.45,0.00016986,2]
[378660967,1754946658076,-160.413934,0.00016986,2]
[378660968,1754946658086,-400.0,0.00016986,2]
[378660969,1754946658097,-400.0,0.00016986,2]
[378660970,1754946658107,-521.33,0.00016986,2]
[378660971,1754946658117,-498.78,0.00016986,2]
[378660972,1754946658128,-418.01,0.00016986,2]
[378660973,1754946658137,-400.0,0.00016986,2]
[378660974,1754946658147,-400.0,0.00016986,2]
[378660975,1754946658156,-60.46504204,0.00016986,2]
[378660976,1754946658518,-339.53495796,0.00016986,2]
[378660977,1754946658527,-400.0,0.00016986,2]
[378660978,1754946658537,-289.46504204,0.00016986,2]
[378660979,1754946658548,-491.40495796,0.00016986,2]
[378660980,1754946658557,-545.73,0.00016986,2]
[378660981,1754946658566,-174.49504204,0.00016986,2]
[378660982,1754946658578,-225.50495796,0.00016986,2]
[378660983,1754946658587,-437.52253851,0.00016986,2]
[378660984,1754946797952,200.0,0.00016003,2]
[378660987,1754946913835,171.39,0.00013699,2]
[378660988,1754946968350,3568.024258,7.945e-05,2]
[378660989,1754947095490,513.0,0.00015879,2]
[378660990,1754947221416,150.0,9.7e-05,2]
[378660993,1754947335783,236.63,0.00015611,2]
[378660994,1754947433643,182.54,0.00015674,2]
[378660997,1754947461673,170.0,0.00015594,7]
[378660998,1754947504633,197.63,0.00015594,2]
[378660999,1754947566584,708.96,0.00015629,2]
[378661003,1754947629274,1000.0,0.0001559,2]
[378661018,1754947831853,-513.0,0.00016201,2]
[378661019,1754947831863,-250.0,0.00016219,2]
[378661020,1754947831873,-25.90220138,0.00016237,2]
[378661021,1754947831885,-154.17068593,0.00016237,2]